fUSD/lending_fUSD_20250629
["ID","MTS","AMOUNT","RATE_DAILY","PERIOD"]
[368484422,1751190670971,-490.0,0.00027945,3]
[368484423,1751190670981,-1509.17,0.00027945,3]
[368484424,1751190670990,-2526.68,0.00027945,3]
[368484425,1751190671000,-490.0,0.00027945,3]
[368484426,1751190671010,-1923.32,0.00027945,3]
[368484427,1751190671019,-830.46,0.00027945,3]
[368484428,1751190671028,-490.0,0.00027945,3]
[368484429,1751190671038,-1194.57,0.00027945,3]
[368484430,1751190671048,-2090.18,0.00027945,3]
[368484431,1751190671058,-490.0,0.00027945,3]
[368484432,1751190671068,-1213.82,0.00027945,3]
[368484433,1751190671078,-2063.76,0.00027945,3]
[368484434,1751190671088,-500.0,0.00027973,5]
[368484435,1751190671100,-1727.06481,0.0002798,2]
[368484436,1751190671110,-1000.0,0.00028,2]
[368484437,1751190671119,-1000.0,0.00028,2]
[368484438,1751190671129,-1000.0,0.00028,2]
[368484439,1751190671138,-1000.0,0.00028,2]
[368484440,1751190671148,-1000.0,0.00028,2]
[368484441,1751190671158,-1000.0,0.00028,2]
[368484442,1751190671168,-1000.0,0.00028,2]
[368484443,1751190671177,-1000.0,0.00028,2]
[368484444,1751190671186,-479.52259878,0.00028002,2]
[368484445,1751190671196,-3340.0,0.00028023,2]
[368484446,1751190671205,-948.0,0.00028023,2]
[368484447,1751190671215,-804.0,0.00028023,2]
[368484448,1751190671224,-1163.0,0.00028023,2]
[368484449,1751190671233,-930.0,0.00028023,2]
[368484450,1751190671243,-1279.0,0.00028023,2]
[368484451,1751190671252,-1677.0,0.00028023,2]
[368484452,1751190671261,-558.0,0.00028023,2]
[368484453,1751190671270,-4104.0,0.00028023,2]
[368484454,1751190671279,-156.0,0.00028023,2]
[368484455,1751190671289,-7147.0,0.00028023,2]
[368484456,1751190671298,-886.0,0.00028023,2]
[368484457,1751190671307,-1500.0,0.00028026,30]
[368484458,1751190671316,-371.85557959,0.00028028,2]
[368484459,1751190671326,-15392.0623278,0.00028028,2]
[368484460,1751190671339,-462.71,0.00028055,2]
[368484461,1751190671348,-1596.84,0.00028055,2]
[368484462,1751190671358,-318.0,0.00028104,2]
[368484463,1751190671367,-9216.29104496,0.00028119,2]
[368484464,1751190671377,-151.0,0.00028119,7]
[368484465,1751190671386,-15392.0623278,0.00028119,2]
[368484466,1751190671395,-150.0,0.00028141,2]
[368484467,1751190671406,-2043.46130184,0.00028141,18]
[368484468,1751190671416,-150.0,0.00028152,2]
[368484469,1751190671426,-300.0,0.00028218,10]
[368484470,1751190671435,-490.0,0.00028218,3]
[368484471,1751190671444,-590.68,0.00028218,3]
[368484472,1751190671454,-150.0,0.00028218,2]
[368484473,1751190671463,-600.0,0.00028218,7]
[368484474,1751190671472,-474.9293723,0.00028219,3]
[368484475,1751190671482,-490.0,0.00028219,3]
[368484476,1751190671492,-490.0,0.00028219,3]
[368484477,1751190671501,-220.0,0.00028219,3]
[368484478,1751190671510,-948.9,0.00028219,3]
[368484479,1751190671519,-667.1,0.00028219,3]
[368484480,1751190671529,-490.0,0.00028219,3]
[368484481,1751190671539,-513.09,0.00028219,3]
[368484482,1751190671548,-490.0,0.00028219,3]
[368484483,1751190671558,-490.0,0.00028219,3]
[368484484,1751190671568,-978.74,0.00028219,3]
[368484485,1751190671577,-642.29,0.00028219,3]
[368484486,1751190671586,-490.0,0.00028219,3]
[368484487,1751190671596,-490.0,0.00028219,3]
[368484488,1751190671605,-490.0,0.00028219,3]
[368484489,1751190671614,-490.0,0.00028219,3]
[368484490,1751190671623,-1186.44,0.00028219,3]
[368484491,1751190671633,-490.0,0.00028219,3]
[368484492,1751190671642,-490.0,0.00028219,3]
[368484493,1751190671652,-2554.302964,0.00028219,3]
[368484494,1751190671661,-853.16,0.00028219,3]
[368484495,1751190671671,-490.0,0.00028219,3]
[368484496,1751190671680,-490.0,0.00028219,3]
[368484497,1751190671689,-2816.157543,0.00028219,3]
[368484498,1751190671699,-495.34882158,0.00028219,3]
[368484499,1751190671708,-490.0,0.00028219,3]
[368484500,1751190671717,-490.0,0.00028219,3]
[368484501,1751190671727,-490.0,0.00028219,3]
[368484502,1751190671736,-2200.380726,0.00028219,3]
[368484503,1751190671745,-158.454064,0.00028219,3]
[368484504,1751190671755,-490.0,0.00028219,3]
[368484505,1751190671765,-500.85,0.00028219,3]
[368484506,1751190671774,-392.680419,0.00028219,3]
[368484507,1751190671783,-490.0,0.00028219,3]
[368484508,1751190671792,-490.0,0.00028219,3]
[368484509,1751190671801,-490.0,0.00028219,3]
[368484510,1751190671810,-490.0,0.00028219,3]
[368484511,1751190671820,-887.72,0.00028219,3]
[368484512,1751190671829,-490.0,0.00028219,3]
[368484513,1751190671839,-490.0,0.00028219,3]
[368484514,1751190671848,-153.102854,0.00028219,3]
[368484515,1751190671857,-656.47,0.00028219,3]
[368484516,1751190671867,-556.18,0.00028219,3]
[368484517,1751190671876,-571.97,0.00028219,3]
[368484518,1751190671885,-490.0,0.00028219,3]
[368484519,1751190671894,-858.42,0.00028219,3]
[368484520,1751190671904,-490.0,0.00028219,3]
[368484521,1751190671913,-648.74,0.00028219,3]
[368484522,1751190671922,-490.0,0.00028219,3]
[368484523,1751190671932,-490.0,0.00028219,3]
[368484524,1751190671942,-1167.71,0.00028219,3]
[368484525,1751190671951,-490.0,0.00028219,3]
[368484526,1751190671960,-167.777922,0.00028219,3]
[368484527,1751190671970,-642.42,0.00028219,3]
[368484528,1751190671980,-490.0,0.00028219,3]
[368484529,1751190671990,-523.68,0.00028219,3]
[368484530,1751190672000,-490.0,0.00028219,3]
[368484531,1751190672009,-490.0,0.00028219,3]
[368484532,1751190672019,-490.0,0.00028219,3]
[368484533,1751190672029,-490.0,0.00028219,3]
[368484534,1751190672038,-490.0,0.00028219,3]
[368484535,1751190672048,-625.75,0.00028219,3]
[368484536,1751190672057,-490.0,0.00028219,3]
[368484537,1751190672067,-490.0,0.00028219,3]
[368484538,1751190672173,-490.0,0.00028219,3]
[368484539,1751190672182,-490.0,0.00028219,3]
[368484540,1751190672192,-490.0,0.00028219,3]
[368484541,1751190672201,-490.0,0.00028219,3]
[368484542,1751190672210,-490.0,0.00028219,3]
[368484543,1751190672220,-490.0,0.00028219,3]
[368484544,1751190672229,-1529.36,0.00028219,3]
[368484545,1751190672238,-490.0,0.00028219,3]
[368484546,1751190672247,-490.0,0.00028219,3]
[368484547,1751190672256,-490.0,0.00028219,3]
[368484548,1751190672266,-490.0,0.00028219,3]
[368484549,1751190672275,-490.0,0.00028219,3]
[368484550,1751190672285,-725.47,0.00028219,3]
[368484551,1751190672294,-167.777922,0.00028219,3]
[368484552,1751190672303,-490.0,0.00028219,3]
[368484553,1751190672312,-490.0,0.00028219,3]
[368484554,1751190672321,-490.0,0.00028219,3]
[368484555,1751190672335,-490.0,0.00028219,3]
[368484556,1751190672344,-490.0,0.00028219,3]
[368484557,1751190672353,-490.0,0.00028219,3]
[368484558,1751190672362,-490.0,0.00028219,3]
[368484559,1751190672371,-1837.93,0.00028219,3]
[368484560,1751190672380,-490.0,0.00028219,3]
[368484561,1751190672389,-490.0,0.00028219,3]
[368484562,1751190672398,-677.59,0.00028219,3]
[368484563,1751190672406,-961.81,0.00028219,3]
[368484564,1751190672416,-490.0,0.00028219,3]
[368484565,1751190672425,-490.0,0.00028219,3]
[368484566,1751190672435,-2566.71319233,0.00028219,14]
[368484567,1751190672444,-490.0,0.00028219,3]
[368484568,1751190672453,-811.6,0.00028219,3]
[368484569,1751190672462,-458.84482576,0.00028219,3]
[368484570,1751190672471,-701.76,0.00028219,3]
[368484571,1751190672480,-490.0,0.00028219,3]
[368484572,1751190672489,-801.55,0.00028219,3]
[368484573,1751190672498,-490.0,0.00028219,3]
[368484574,1751190672507,-490.0,0.00028219,3]
[368484575,1751190672516,-493.56,0.00028219,3]
[368484576,1751190672525,-490.0,0.00028219,3]
[368484577,1751190672534,-490.0,0.00028219,3]
[368484578,1751190672543,-490.0,0.00028219,3]
[368484579,1751190672553,-490.0,0.00028219,3]
[368484580,1751190672562,-490.0,0.00028219,3]
[368484581,1751190672571,-490.0,0.00028219,3]
[368484582,1751190672581,-490.0,0.00028219,3]
[368484583,1751190672590,-740.41,0.00028219,3]
[368484584,1751190672599,-930.82,0.00028219,3]
[368484585,1751190672608,-1134.82,0.00028219,3]
[368484586,1751190672618,-629.08,0.00028219,3]
[368484587,1751190672627,-507.56,0.00028219,3]
[368484588,1751190672635,-424.23817389,0.00028219,3]
[368484589,1751190672644,-490.0,0.00028219,3]
[368484590,1751190672654,-541.63871132,0.00028219,3]
[368484591,1751190672663,-490.0,0.00028219,3]
[368484592,1751190672672,-490.0,0.00028219,3]
[368484593,1751190672681,-508.09,0.00028219,3]
[368484594,1751190672690,-490.0,0.00028219,3]
[368484595,1751190672700,-1395.58,0.00028219,3]
[368484596,1751190672709,-596.83,0.00028219,3]
[368484597,1751190672719,-516.57,0.00028219,3]
[368484598,1751190672729,-490.0,0.00028219,3]
[368484599,1751190672738,-2015.14,0.00028219,3]
[368484600,1751190672748,-1527.96,0.00028219,3]
[368484601,1751190672757,-490.0,0.00028219,3]
[368484602,1751190672767,-490.0,0.00028219,3]
[368484603,1751190672776,-490.0,0.00028219,3]
[368484604,1751190672785,-615.0,0.00028219,3]
[368484605,1751190672794,-490.0,0.00028219,3]
[368484606,1751190672805,-490.0,0.00028219,3]
[368484607,1751190672814,-490.0,0.00028219,3]
[368484608,1751190672823,-889.47,0.00028219,3]
[368484609,1751190672833,-490.0,0.00028219,3]
[368484610,1751190672841,-2302.9,0.00028219,3]
[368484611,1751190672851,-490.0,0.00028219,3]
[368484612,1751190672860,-490.0,0.00028219,3]
[368484613,1751190672871,-490.0,0.00028219,3]
[368484614,1751190672880,-490.0,0.00028219,3]
[368484615,1751190672890,-490.0,0.00028219,3]
[368484616,1751190672901,-490.0,0.00028219,3]
[368484617,1751190672911,-617.11761645,0.00028219,3]
[368484618,1751190672922,-743.01,0.00028219,3]
[368484619,1751190672930,-490.0,0.00028219,3]
[368484620,1751190672940,-945.27,0.00028219,3]
[368484621,1751190672950,-643.27,0.00028219,3]
[368484622,1751190672960,-1940.61,0.00028219,3]
[368484623,1751190672969,-314.38345566,0.00028219,3]
[368484624,1751190672978,-490.0,0.00028219,3]
[368484625,1751190672987,-1952.95,0.00028219,3]
[368484626,1751190672996,-1201.96,0.00028219,3]
[368484627,1751190673006,-1310.06,0.00028219,3]
[368484628,1751190673015,-490.0,0.00028219,3]
[368484629,1751190673025,-369.84,0.00028219,3]
[368484630,1751190673034,-490.0,0.00028219,3]
[368484631,1751190673044,-1125.22,0.00028219,3]
[368484632,1751190673054,-1224.35,0.00028219,3]
[368484633,1751190673063,-490.0,0.00028219,3]
[368484634,1751190673072,-976.06,0.00028219,3]
[368484635,1751190673081,-728.8,0.00028219,3]
[368484636,1751190673090,-749.58,0.00028219,3]
[368484637,1751190673100,-957.88,0.00028219,3]
[368484638,1751190673109,-1824.88,0.00028219,3]
[368484639,1751190673119,-490.0,0.00028219,3]
[368484640,1751190673128,-603.75,0.00028219,3]
[368484641,1751190673137,-387.09118152,0.00028219,3]
[368484642,1751190673146,-490.0,0.00028219,3]
[368484643,1751190673156,-490.0,0.00028219,3]
[368484644,1751190673165,-490.0,0.00028219,3]
[368484645,1751190673175,-490.0,0.00028219,3]
[368484646,1751190673185,-538.77,0.00028219,3]
[368484647,1751190673194,-776.78,0.00028219,3]
[368484648,1751190673202,-960.82,0.00028219,3]
[368484649,1751190673212,-894.84,0.00028219,3]
[368484650,1751190673221,-490.0,0.00028219,3]
[368484651,1751190673230,-490.0,0.00028219,3]
[368484652,1751190673239,-490.0,0.00028219,3]
[368484653,1751190673248,-1904.77,0.00028219,3]
[368484654,1751190673257,-490.0,0.00028219,3]
[368484655,1751190673266,-490.0,0.00028219,3]
[368484656,1751190673275,-490.0,0.00028219,3]
[368484657,1751190673284,-1462.39,0.00028219,3]
[368484658,1751190673294,-2300.89,0.00028219,3]
[368484659,1751190673303,-490.0,0.00028219,3]
[368484660,1751190673312,-694.52,0.00028219,3]
[368484661,1751190673321,-650.78,0.00028219,3]
[368484662,1751190673333,-490.0,0.00028219,3]
[368484663,1751190673344,-490.0,0.00028219,3]
[368484664,1751190673353,-2228.41,0.00028219,3]
[368484665,1751190673362,-490.0,0.00028219,3]
[368484666,1751190673371,-1649.19,0.00028219,3]
[368484667,1751190673381,-490.0,0.00028219,3]
[368484668,1751190673391,-490.0,0.00028219,3]
[368484669,1751190673400,-2026.94,0.00028219,3]
[368484670,1751190673410,-490.0,0.00028219,3]
[368484671,1751190673420,-490.0,0.00028219,3]
[368484672,1751190673429,-843.7,0.00028219,3]
[368484673,1751190673438,-490.0,0.00028219,3]
[368484674,1751190673448,-490.0,0.00028219,3]
[368484675,1751190673457,-490.0,0.00028219,3]
[368484676,1751190673466,-490.0,0.00028219,3]
[368484677,1751190673475,-490.0,0.00028219,3]
[368484678,1751190673485,-490.0,0.00028219,3]
[368484679,1751190673494,-571.61,0.00028219,3]
[368484680,1751190673504,-1147.84,0.00028219,3]
[368484681,1751190673513,-490.0,0.00028219,3]
[368484682,1751190673522,-490.0,0.00028219,3]
[368484683,1751190673531,-1556.08,0.00028219,3]
[368484684,1751190673540,-896.97,0.00028219,3]
[368484685,1751190673550,-490.0,0.00028219,3]
[368484686,1751190673559,-594.67,0.00028219,3]
[368484687,1751190673568,-490.0,0.00028219,3]
[368484688,1751190673577,-1027.62,0.00028219,3]
[368484689,1751190673587,-707.16,0.00028219,3]
[368484690,1751190673596,-500.0,0.00028219,3]
[368484691,1751190673605,-792.35,0.00028219,3]
[368484692,1751190673614,-490.0,0.00028219,3]
[368484693,1751190673623,-880.72,0.00028219,3]
[368484694,1751190673633,-490.0,0.00028219,3]
[368484695,1751190673641,-490.0,0.00028219,3]
[368484696,1751190673651,-490.0,0.00028219,3]
[368484697,1751190673660,-158.498918,0.00028219,7]
[368484698,1751190673670,-490.0,0.00028219,3]
[368484699,1751190673679,-780.47,0.00028219,3]
[368484700,1751190673688,-490.0,0.00028219,3]
[368484701,1751190673698,-560.33,0.00028219,3]
[368484702,1751190673707,-525.19,0.00028219,3]
[368484703,1751190673717,-944.59,0.00028219,3]
[368484704,1751190673726,-490.0,0.00028219,3]
[368484705,1751190673735,-1653.81,0.00028219,3]
[368484706,1751190673745,-490.0,0.00028219,3]
[368484707,1751190673754,-1620.77,0.00028219,3]
[368484708,1751190673764,-1900.77,0.00028219,3]
[368484709,1751190673772,-490.0,0.00028219,3]
[368484710,1751190673781,-490.0,0.00028219,3]
[368484711,1751190673791,-521.24,0.00028219,3]
[368484712,1751190673800,-490.0,0.00028219,3]
[368484713,1751190673809,-1487.61,0.00028219,3]
[368484714,1751190673818,-1556.78,0.00028219,3]
[368484715,1751190673827,-490.0,0.00028219,3]
[368484716,1751190673836,-1633.03,0.00028219,3]
[368484717,1751190673846,-1046.71,0.00028219,3]
[368484718,1751190673855,-490.0,0.00028219,3]
[368484719,1751190673864,-506.3,0.00028219,3]
[368484720,1751190673873,-1936.24,0.00028219,3]
[368484721,1751190673882,-514.5,0.00028219,3]
[368484722,1751190673891,-490.0,0.00028219,3]
[368484723,1751190673900,-490.0,0.00028219,3]
[368484724,1751190673910,-2262.43,0.00028219,3]
[368484725,1751190673919,-665.95,0.00028219,3]
[368484726,1751190673928,-1268.88,0.00028219,3]
[368484727,1751190673938,-2474.6,0.00028219,3]
[368484728,1751190673947,-689.16,0.00028219,3]
[368484729,1751190673956,-490.0,0.00028219,3]
[368484730,1751190673966,-490.0,0.00028219,3]
[368484731,1751190673975,-490.0,0.00028219,3]
[368484732,1751190673985,-858.86,0.00028219,3]
[368484733,1751190673994,-1400.07,0.00028219,3]
[368484734,1751190674003,-490.0,0.00028219,3]
[368484735,1751190674013,-490.0,0.00028219,3]
[368484736,1751190674022,-730.59,0.00028219,3]
[368484737,1751190674031,-666.33,0.00028219,3]
[368484738,1751190674041,-1700.28,0.00028219,3]
[368484739,1751190674050,-818.45,0.00028219,3]
[368484740,1751190674060,-709.17,0.00028219,3]
[368484741,1751190674070,-1024.15,0.00028219,3]
[368484742,1751190674079,-490.0,0.00028219,3]
[368484743,1751190674088,-2038.87,0.00028219,3]
[368484744,1751190674098,-1027.52,0.00028219,3]
[368484745,1751190674106,-490.0,0.00028219,3]
[368484746,1751190674116,-534.02,0.00028219,3]
[368484747,1751190674125,-2394.84,0.00028219,3]
[368484748,1751190674136,-490.0,0.00028219,3]
[368484749,1751190674146,-1561.51,0.00028219,3]
[368484750,1751190674156,-490.0,0.00028219,3]
[368484751,1751190674165,-490.0,0.00028219,3]
[368484752,1751190674174,-490.0,0.00028219,3]
[368484753,1751190674185,-1167.05,0.00028219,3]
[368484754,1751190674195,-899.19,0.00028219,3]
[368484755,1751190674205,-935.31,0.00028219,3]
[368484756,1751190674214,-771.06,0.00028219,3]
[368484757,1751190674224,-503.01090582,0.00028219,3]
[368484758,1751190674235,-610.33,0.00028219,3]
[368484759,1751190674244,-490.0,0.00028219,3]
[368484760,1751190674253,-490.0,0.00028219,3]
[368484761,1751190674262,-715.86,0.00028219,3]
[368484762,1751190674271,-490.0,0.00028219,3]
[368484763,1751190674281,-1503.84,0.00028219,3]
[368484764,1751190674290,-1626.28,0.00028219,3]
[368484765,1751190674299,-566.4,0.00028219,3]
[368484766,1751190674307,-934.93,0.00028219,3]
[368484767,1751190674317,-589.35,0.00028219,3]
[368484768,1751190674327,-490.0,0.00028219,3]
[368484769,1751190674340,-162.9331751,0.00028219,3]
[368484770,1751190674349,-516.29,0.00028219,3]
[368484771,1751190674358,-2211.02,0.00028219,3]
[368484772,1751190674367,-1313.26,0.00028219,3]
[368484773,1751190674376,-878.98,0.00028219,3]
[368484774,1751190674385,-2018.3,0.00028219,3]
[368484775,1751190674395,-490.0,0.00028219,3]
[368484776,1751190674404,-490.0,0.00028219,3]
[368484777,1751190674414,-1320.46,0.00028219,3]
[368484778,1751190674424,-490.0,0.00028219,3]
[368484779,1751190674433,-1272.1,0.00028219,3]
[368484780,1751190674442,-2254.95,0.00028219,3]
[368484781,1751190674451,-490.0,0.00028219,3]
[368484782,1751190674460,-490.0,0.00028219,3]
[368484783,1751190674469,-490.0,0.00028219,3]
[368484784,1751190674478,-490.0,0.00028219,3]
[368484785,1751190674488,-801.49,0.00028219,3]
[368484786,1751190674497,-793.92,0.00028219,3]
[368484787,1751190674506,-1409.04,0.00028219,3]
[368484788,1751190674515,-566.98,0.00028219,3]
[368484789,1751190674525,-855.39,0.00028219,3]
[368484790,1751190674535,-520.23,0.00028219,3]
[368484791,1751190674544,-1383.19,0.00028219,3]
[368484792,1751190674554,-503.31,0.00028219,3]
[368484793,1751190674563,-490.0,0.00028219,3]
[368484794,1751190674572,-497.0652969,0.00028219,3]
[368484795,1751190674581,-490.0,0.00028219,3]
[368484796,1751190674589,-490.0,0.00028219,3]
[368484797,1751190674599,-1411.93,0.00028219,3]
[368484798,1751190674607,-490.0,0.00028219,3]
[368484799,1751190674617,-907.17,0.00028219,3]
[368484800,1751190674626,-1733.55,0.00028219,3]
[368484801,1751190674635,-490.0,0.00028219,3]
[368484802,1751190674643,-1161.29,0.00028219,3]
[368484803,1751190674653,-490.0,0.00028219,3]
[368484804,1751190674662,-490.0,0.00028219,3]
[368484805,1751190674671,-490.0,0.00028219,3]
[368484806,1751190674681,-490.0,0.00028219,3]
[368484807,1751190674690,-490.0,0.00028219,3]
[368484808,1751190674699,-648.19,0.00028219,3]
[368484809,1751190674708,-492.59,0.00028219,3]
[368484810,1751190674718,-664.2,0.00028219,3]
[368484811,1751190674727,-1411.98,0.00028219,3]
[368484812,1751190674736,-490.0,0.00028219,3]
[368484813,1751190674745,-1476.05,0.00028219,3]
[368484814,1751190674755,-490.0,0.00028219,3]
[368484815,1751190674764,-490.0,0.00028219,3]
[368484816,1751190674773,-490.0,0.00028219,3]
[368484817,1751190674783,-490.0,0.00028219,3]
[368484818,1751190674792,-490.0,0.00028219,3]
[368484819,1751190674802,-2483.68,0.00028219,3]
[368484820,1751190674811,-1539.15,0.00028219,3]
[368484821,1751190674820,-490.0,0.00028219,3]
[368484822,1751190674830,-622.78,0.00028219,3]
[368484823,1751190674839,-2320.44,0.00028219,3]
[368484824,1751190674849,-490.0,0.00028219,3]
[368484825,1751190674858,-490.0,0.00028219,3]
[368484826,1751190674867,-894.95,0.00028219,3]
[368484827,1751190674878,-701.41,0.00028219,3]
[368484828,1751190674888,-506.9342451,0.00028219,3]
[368484829,1751190674898,-1005.08,0.00028219,3]
[368484830,1751190674908,-526.1,0.00028219,3]
[368484831,1751190674918,-490.0,0.00028219,3]
[368484832,1751190674928,-490.0,0.00028219,3]
[368484833,1751190674938,-1032.78,0.00028219,3]
[368484834,1751190674948,-1199.97,0.00028219,3]
[368484835,1751190674958,-1283.76,0.00028219,3]
[368484836,1751190674968,-549.61,0.00028219,3]
[368484837,1751190674977,-490.0,0.00028219,3]
[368484838,1751190674987,-490.0,0.00028219,3]
[368484839,1751190674996,-901.15,0.00028219,3]
[368484840,1751190675006,-545.6,0.00028219,3]
[368484841,1751190675016,-841.45,0.00028219,3]
[368484842,1751190675025,-1956.7,0.00028219,3]
[368484843,1751190675035,-525.0,0.00028219,3]
[368484844,1751190675044,-908.9,0.00028219,3]
[368484845,1751190675054,-490.0,0.00028219,3]
[368484846,1751190675064,-490.0,0.00028219,3]
[368484847,1751190675073,-1559.17,0.00028219,3]
[368484848,1751190675083,-490.0,0.00028219,3]
[368484849,1751190675093,-772.36,0.00028219,3]
[368484850,1751190675102,-490.0,0.00028219,3]
[368484851,1751190675112,-150.0,0.00028219,3]
[368484852,1751190675122,-1731.31,0.00028219,3]
[368484853,1751190675131,-150.0,0.00028219,3]
[368484854,1751190675142,-490.0,0.00028219,3]
[368484855,1751190675152,-1241.41,0.00028219,3]
[368484856,1751190675161,-490.0,0.00028219,3]
[368484857,1751190675171,-2257.75,0.00028219,3]
[368484858,1751190675180,-1736.54,0.00028219,3]
[368484859,1751190675190,-2325.03,0.00028219,3]
[368484860,1751190675200,-613.43,0.00028219,3]
[368484861,1751190675209,-490.0,0.00028219,3]
[368484862,1751190675218,-1117.78,0.00028219,3]
[368484863,1751190675227,-1022.6,0.00028219,3]
[368484864,1751190675237,-896.69,0.00028219,3]
[368484865,1751190675246,-490.0,0.00028219,3]
[368484866,1751190675255,-998.0,0.00028219,3]
[368484867,1751190675264,-490.0,0.00028219,3]
[368484868,1751190675274,-490.0,0.00028219,3]
[368484869,1751190675283,-490.0,0.00028219,3]
[368484870,1751190675293,-1382.19,0.00028219,3]
[368484871,1751190675302,-490.0,0.00028219,3]
[368484872,1751190675311,-1087.69,0.00028219,3]
[368484873,1751190675321,-490.0,0.00028219,3]
[368484874,1751190675333,-490.0,0.00028219,3]
[368484875,1751190675343,-937.32,0.00028219,3]
[368484876,1751190675352,-490.0,0.00028219,3]
[368484877,1751190675361,-490.0,0.00028219,3]
[368484878,1751190675370,-490.0,0.00028219,3]
[368484879,1751190675381,-490.0,0.00028219,3]
[368484880,1751190675390,-2003.29,0.00028219,3]
[368484881,1751190675399,-297.21030412,0.00028219,3]
[368484882,1751190675408,-1073.82,0.00028219,3]
[368484883,1751190675418,-1428.66,0.00028219,3]
[368484884,1751190675427,-490.0,0.00028219,3]
[368484885,1751190675437,-906.56,0.00028219,3]
[368484886,1751190675446,-490.0,0.00028219,3]
[368484887,1751190675455,-751.94,0.00028219,3]
[368484888,1751190675464,-1284.2,0.00028219,3]
[368484889,1751190675474,-995.73,0.00028219,3]
[368484890,1751190675483,-730.89,0.00028219,3]
[368484891,1751190675492,-490.0,0.00028219,3]
[368484892,1751190675501,-500.0,0.00028219,2]
[368484893,1751190675511,-349.86252747,0.00028219,3]
[368484894,1751190675520,-150.0,0.00028219,3]
[368484895,1751190675529,-490.0,0.00028219,3]
[368484896,1751190675538,-490.0,0.00028219,3]
[368484897,1751190675548,-490.0,0.00028219,3]
[368484898,1751190675558,-490.0,0.00028219,3]
[368484899,1751190675571,-490.0,0.00028219,3]
[368484900,1751190675580,-490.0,0.00028219,3]
[368484901,1751190675589,-3819.49,0.00028219,3]
[368484902,1751190675598,-490.0,0.00028219,3]
[368484903,1751190675607,-614.58,0.00028219,3]
[368484904,1751190675616,-2099.43,0.00028219,3]
[368484905,1751190675626,-591.09,0.00028219,3]
[368484906,1751190675635,-490.0,0.00028219,3]
[368484907,1751190675644,-490.0,0.00028219,3]
[368484908,1751190675654,-490.0,0.00028219,3]
[368484909,1751190675664,-1763.09,0.00028219,3]
[368484910,1751190675674,-1553.22,0.00028219,3]
[368484911,1751190675683,-930.34,0.00028219,3]
[368484912,1751190675693,-587.32,0.00028219,3]
[368484913,1751190675703,-1288.37,0.00028219,3]
[368484914,1751190675713,-490.0,0.00028219,3]
[368484915,1751190675723,-4450.47,0.00028219,3]
[368484916,1751190675732,-490.0,0.00028219,3]
[368484917,1751190675742,-935.65,0.00028219,3]
[368484918,1751190675752,-891.46,0.00028219,3]
[368484919,1751190675761,-490.0,0.00028219,3]
[368484920,1751190675771,-490.0,0.00028219,3]
[368484921,1751190675780,-854.31,0.00028219,3]